[Event "Titled Tuesday Blitz December 20 Early 2022"]
[White "Alexander_Donchenko"]
[Black "Arnaldofdelavaramulet"]
[WhiteElo "2812"]
[BlackElo "2648"]
[Result "1-0"]
[Round "11"]
[TimeControl "180+2"]
[Date "2022.12.20"]
[WhiteClock "0:00:55"]
[BlackClock "0:00:02"]

1. Nf3 {[%clk 0:02:55]}  c5 {[%clk 0:03:00]} 2. c4 {[%clk 0:02:55]}  Nf6 {[%clk 0:03:00]} 3. g3 {[%clk 0:02:55]}  g6 {[%clk 0:03:00]} 4. Bg2 {[%clk 0:02:55]}  Bg7 {[%clk 0:03:01]} 5. O-O {[%clk 0:02:55]}  d6 {[%clk 0:03:01]} 6. d4 {[%clk 0:02:55]}  cxd4 {[%clk 0:03:02]} 7. Nxd4 {[%clk 0:02:56]}  O-O {[%clk 0:03:03]} 8. Nc3 {[%clk 0:02:56]}  Nc6 {[%clk 0:03:03]} 9. Nxc6 {[%clk 0:02:56]}  bxc6 {[%clk 0:03:04]} 10. Bxc6 {[%clk 0:02:57]}  Bh3 {[%clk 0:03:04]} 11. Bxa8 {[%clk 0:02:56]}  Qxa8 {[%clk 0:03:05]} 12. f3 {[%clk 0:02:56]}  Bxf1 {[%clk 0:03:05]} 13. Kxf1 {[%clk 0:02:55]}  Ng4 {[%clk 0:02:04]} 14. Kg2 {[%clk 0:02:35]}  Ne5 {[%clk 0:01:42]} 15. Qd5 {[%clk 0:02:22]}  Rc8 {[%clk 0:01:08]} 16. Qxa8 {[%clk 0:01:57]}  Rxa8 {[%clk 0:01:09]} 17. c5 {[%clk 0:01:47]}  dxc5 {[%clk 0:01:02]} 18. Na4 {[%clk 0:01:47]}  Nc4 {[%clk 0:00:38]} 19. Rb1 {[%clk 0:01:44]}  Rd8 {[%clk 0:00:38]} 20. Bg5 {[%clk 0:01:23]}  f6 {[%clk 0:00:21]} 21. Bf4 {[%clk 0:01:22]}  g5 {[%clk 0:00:21]} 22. Rc1 {[%clk 0:01:21]}  Nxb2 {[%clk 0:00:20]} 23. Nxb2 {[%clk 0:01:16]}  gxf4 {[%clk 0:00:20]} 24. Rc2 {[%clk 0:01:13]}  fxg3 {[%clk 0:00:20]} 25. hxg3 {[%clk 0:01:13]}  f5 {[%clk 0:00:20]} 26. Nd3 {[%clk 0:01:12]}  Bd4 {[%clk 0:00:18]} 27. Rc4 {[%clk 0:01:04]}  e5 {[%clk 0:00:15]} 28. f4 {[%clk 0:00:57]}  e4 {[%clk 0:00:08]} 29. Nxc5 {[%clk 0:00:56]}  Bxc5 {[%clk 0:00:09]} 30. Rxc5 {[%clk 0:00:57]}  Rd2 {[%clk 0:00:09]} 31. Kf2 {[%clk 0:00:57]}  Rxa2 {[%clk 0:00:07]} 32. Rxf5 {[%clk 0:00:58]}  a5 {[%clk 0:00:02]} 33. Re5 {[%clk 0:00:58]}  Ra4 {[%clk 0:00:02]} 34. g4 {[%clk 0:00:57]}  Kg7 {[%clk 0:00:03]} 35. Ke3 {[%clk 0:00:56]}  Rb4 {[%clk 0:00:01]} 36. Rxa5 {[%clk 0:00:56]}  h6 {[%clk 0:00:01]} 37. Re5 {[%clk 0:00:56]}  Rb3+ {[%clk 0:00:01]} 38. Kxe4 {[%clk 0:00:56]}  Rg3 {[%clk 0:00:02]} 39. g5 {[%clk 0:00:56]}  h5 {[%clk 0:00:02]} 40. Re7+ {[%clk 0:00:55]}  Kg8 {[%clk 0:00:03]} 41. Re6 {[%clk 0:00:55]}  h4 {[%clk 0:00:01]} 42. Rh6 {[%clk 0:00:55]}  h3 {[%clk 0:00:02]} 43. Kf5 {[%clk 0:00:55]}  Re3 {[%clk 0:00:02]} 44. Kg4 {[%clk 0:00:55]}  Rxe2 {[%clk 0:00:02]} 45. Rxh3 {[%clk 0:00:55]} 1-0


[Site "https://www.chess.com"]

[Event "Titled Tuesday Blitz December 20 Early 2022"]
[White "Alexei_Gubajdullin"]
[Black "vovachesss"]
[WhiteElo "2625"]
[BlackElo "2756"]
[Result "1-0"]
[Round "11"]
[TimeControl "180+2"]
[Date "2022.12.20"]
[WhiteClock "0:00:11"]
[BlackClock "0:00:07"]

1. d4 {[%clk 0:03:00]}  d6 {[%clk 0:02:59]} 2. Nf3 {[%clk 0:02:58]}  Nf6 {[%clk 0:03:00]} 3. Bf4 {[%clk 0:02:57]}  g6 {[%clk 0:03:00]} 4. e3 {[%clk 0:02:56]}  Nh5 {[%clk 0:02:59]} 5. Bg5 {[%clk 0:02:52]}  h6 {[%clk 0:02:59]} 6. Bh4 {[%clk 0:02:50]}  Bg7 {[%clk 0:02:59]} 7. Be2 {[%clk 0:02:49]}  g5 {[%clk 0:02:56]} 8. Nfd2 {[%clk 0:02:44]}  Nf4 {[%clk 0:02:54]} 9. exf4 {[%clk 0:02:42]}  gxh4 {[%clk 0:02:53]} 10. c3 {[%clk 0:02:43]}  O-O {[%clk 0:02:48]} 11. Bg4 {[%clk 0:02:32]}  c5 {[%clk 0:02:41]} 12. Bxc8 {[%clk 0:02:28]}  Qxc8 {[%clk 0:02:41]} 13. dxc5 {[%clk 0:02:27]}  h3 {[%clk 0:02:32]} 14. g3 {[%clk 0:02:06]}  Qxc5 {[%clk 0:01:58]} 15. O-O {[%clk 0:02:04]}  e5 {[%clk 0:01:53]} 16. Qg4 {[%clk 0:01:56]}  exf4 {[%clk 0:01:15]} 17. Qxh3 {[%clk 0:01:54]}  fxg3 {[%clk 0:01:11]} 18. hxg3 {[%clk 0:01:51]}  Qb5 {[%clk 0:01:06]} 19. Na3 {[%clk 0:01:37]}  Qxb2 {[%clk 0:01:04]} 20. Nac4 {[%clk 0:01:37]}  Qxc3 {[%clk 0:01:04]} 21. Rac1 {[%clk 0:01:29]}  Qd3 {[%clk 0:00:58]} 22. Rfd1 {[%clk 0:01:15]}  Nc6 {[%clk 0:00:53]} 23. Nf1 {[%clk 0:01:14]}  Qf3 {[%clk 0:00:49]} 24. Nh2 {[%clk 0:01:03]}  Qe2 {[%clk 0:00:37]} 25. Nxd6 {[%clk 0:00:58]}  Nd4 {[%clk 0:00:36]} 26. Rxd4 {[%clk 0:00:49]}  Bxd4 {[%clk 0:00:35]} 27. Ng4 {[%clk 0:00:49]}  Bg7 {[%clk 0:00:16]} 28. Nf5 {[%clk 0:00:41]}  Qe6 {[%clk 0:00:16]} 29. Nfxh6+ {[%clk 0:00:36]}  Bxh6 {[%clk 0:00:17]} 30. Nxh6+ {[%clk 0:00:36]}  Kg7 {[%clk 0:00:06]} 31. Nf5+ {[%clk 0:00:26]}  Kg6 {[%clk 0:00:07]} 32. Qh6+ {[%clk 0:00:18]}  Kxf5 {[%clk 0:00:07]} 33. Rc5+ {[%clk 0:00:18]}  Kg4 {[%clk 0:00:07]} 34. Qh5# {[%clk 0:00:11]} 1-0


[Site "https://www.chess.com"]

[Event "Titled Tuesday Blitz December 20 Early 2022"]
[White "Arora, Tashika"]
[Black "ShahxaibKhan"]
[WhiteFideId "459305"]
[WhiteElo "1896"]
[BlackElo "2382"]
[Result "1/2-1/2"]
[Round "11"]
[TimeControl "180+2"]
[Date "2022.12.20"]
[WhiteClock "0:00:03"]
[BlackClock "0:00:06"]

1. c4 {[%clk 0:02:49]}  e5 {[%clk 0:02:58]} 2. Nc3 {[%clk 0:02:48]}  Nf6 {[%clk 0:02:56]} 3. Nf3 {[%clk 0:02:48]}  Nc6 {[%clk 0:02:57]} 4. e4 {[%clk 0:02:49]}  Bc5 {[%clk 0:02:54]} 5. Nxe5 {[%clk 0:02:48]}  Nxe5 {[%clk 0:02:51]} 6. d4 {[%clk 0:02:48]}  Bb4 {[%clk 0:02:49]} 7. dxe5 {[%clk 0:02:48]}  Nxe4 {[%clk 0:02:25]} 8. Qf3 {[%clk 0:02:48]}  Nxc3 {[%clk 0:02:18]} 9. bxc3 {[%clk 0:02:47]}  Be7 {[%clk 0:02:17]} 10. Qg3 {[%clk 0:02:47]}  Kf8 {[%clk 0:01:57]} 11. Be2 {[%clk 0:02:45]}  b6 {[%clk 0:01:52]} 12. Bf3 {[%clk 0:02:35]}  Rb8 {[%clk 0:01:52]} 13. Bf4 {[%clk 0:02:35]}  Ba6 {[%clk 0:01:32]} 14. Be2 {[%clk 0:02:02]}  Bh4 {[%clk 0:01:10]} 15. Qe3 {[%clk 0:01:48]}  h6 {[%clk 0:01:06]} 16. Rd1 {[%clk 0:01:45]}  Qe7 {[%clk 0:01:04]} 17. Qh3 {[%clk 0:01:25]}  Rd8 {[%clk 0:00:52]} 18. O-O {[%clk 0:01:13]}  Bg5 {[%clk 0:00:48]} 19. Bxg5 {[%clk 0:01:07]}  Qxg5 {[%clk 0:00:38]} 20. Rxd7 {[%clk 0:01:06]}  Rxd7 {[%clk 0:00:30]} 21. Qxd7 {[%clk 0:01:07]}  Qxe5 {[%clk 0:00:30]} 22. Re1 {[%clk 0:00:32]}  g6 {[%clk 0:00:30]} 23. Qd4 {[%clk 0:00:23]}  Qxd4 {[%clk 0:00:23]} 24. cxd4 {[%clk 0:00:24]}  Kg7 {[%clk 0:00:24]} 25. f3 {[%clk 0:00:21]}  Rd8 {[%clk 0:00:24]} 26. Rd1 {[%clk 0:00:20]}  Re8 {[%clk 0:00:20]} 27. Kf2 {[%clk 0:00:20]}  f5 {[%clk 0:00:20]} 28. g3 {[%clk 0:00:19]}  Kf6 {[%clk 0:00:20]} 29. Bd3 {[%clk 0:00:18]}  g5 {[%clk 0:00:19]} 30. Rd2 {[%clk 0:00:17]}  Re7 {[%clk 0:00:19]} 31. d5 {[%clk 0:00:16]}  f4 {[%clk 0:00:16]} 32. gxf4 {[%clk 0:00:15]}  gxf4 {[%clk 0:00:16]} 33. Bf1 {[%clk 0:00:16]}  Re3 {[%clk 0:00:16]} 34. Rd4 {[%clk 0:00:15]}  Ke5 {[%clk 0:00:15]} 35. d6 {[%clk 0:00:05]}  cxd6 {[%clk 0:00:12]} 36. c5 {[%clk 0:00:05]}  Bxf1 {[%clk 0:00:11]} 37. cxd6 {[%clk 0:00:04]}  Bb5 {[%clk 0:00:06]} 38. d7 {[%clk 0:00:04]}  Bxd7 {[%clk 0:00:05]} 39. Rxd7 {[%clk 0:00:05]}  Ra3 {[%clk 0:00:06]} 40. Rd2 {[%clk 0:00:05]}  Kf5 {[%clk 0:00:05]} 41. Rd5+ {[%clk 0:00:04]}  Ke6 {[%clk 0:00:06]} 42. Rd2 {[%clk 0:00:05]}  Ke5 {[%clk 0:00:06]} 43. Re2+ {[%clk 0:00:04]}  Kd5 {[%clk 0:00:06]} 44. Rd2+ {[%clk 0:00:04]}  Kc4 {[%clk 0:00:05]} 45. Re2 {[%clk 0:00:05]}  Kd3 {[%clk 0:00:06]} 46. Rb2 {[%clk 0:00:02]}  Kc3 {[%clk 0:00:05]} 47. Re2 {[%clk 0:00:03]}  b5 {[%clk 0:00:05]} 48. Kg2 {[%clk 0:00:02]}  b4 {[%clk 0:00:05]} 49. Rf2 {[%clk 0:00:03]}  b3 {[%clk 0:00:05]} 50. axb3 {[%clk 0:00:03]}  Kxb3 {[%clk 0:00:06]} 51. Kh3 {[%clk 0:00:04]}  Ra4 {[%clk 0:00:06]} 52. Kg4 {[%clk 0:00:04]}  a5 {[%clk 0:00:07]} 53. Kh5 {[%clk 0:00:05]}  Rb4 {[%clk 0:00:07]} 54. Kxh6 {[%clk 0:00:05]}  a4 {[%clk 0:00:08]} 55. Kg5 {[%clk 0:00:06]}  a3 {[%clk 0:00:09]} 56. h4 {[%clk 0:00:06]}  a2 {[%clk 0:00:10]} 57. Rf1 {[%clk 0:00:06]}  Kb2 {[%clk 0:00:10]} 58. h5 {[%clk 0:00:07]}  Kc3 {[%clk 0:00:10]} 59. Rc1+ {[%clk 0:00:06]}  Kb2 {[%clk 0:00:10]} 60. Re1 {[%clk 0:00:06]}  Rc4 {[%clk 0:00:09]} 61. h6 {[%clk 0:00:03]}  Rc1 {[%clk 0:00:09]} 62. Re2+ {[%clk 0:00:03]}  Rc2 {[%clk 0:00:10]} 63. Re1 {[%clk 0:00:03]}  Rc1 {[%clk 0:00:10]} 64. Re2+ {[%clk 0:00:03]}  Rc2 {[%clk 0:00:10]} 65. Re1 {[%clk 0:00:03]}  Rc1 {[%clk 0:00:06]} 1/2-1/2


[Site "https://www.chess.com"]

[Event "Titled Tuesday Blitz December 20 Early 2022"]
[White "Artem_0degov"]
[Black "Martinez Ramirez, Lennis"]
[BlackFideId "3509079"]
[WhiteElo "2661"]
[BlackElo "2426"]
[Result "0-1"]
[Round "11"]
[TimeControl "180+2"]
[Date "2022.12.20"]
[WhiteClock "0:00:30"]
[BlackClock "0:00:52"]

1. d4 {[%clk 0:03:00]}  d5 {[%clk 0:02:59]} 2. c4 {[%clk 0:03:01]}  e6 {[%clk 0:03:00]} 3. Nc3 {[%clk 0:03:01]}  Nf6 {[%clk 0:03:00]} 4. Bg5 {[%clk 0:03:01]}  Bb4 {[%clk 0:02:59]} 5. e3 {[%clk 0:03:01]}  h6 {[%clk 0:02:58]} 6. Bh4 {[%clk 0:02:59]}  g5 {[%clk 0:02:58]} 7. Bg3 {[%clk 0:02:59]}  Ne4 {[%clk 0:02:59]} 8. Ne2 {[%clk 0:03:00]}  h5 {[%clk 0:02:59]} 9. f3 {[%clk 0:02:36]}  Nxg3 {[%clk 0:02:48]} 10. hxg3 {[%clk 0:02:36]}  Nd7 {[%clk 0:02:21]} 11. Rc1 {[%clk 0:02:33]}  c6 {[%clk 0:02:18]} 12. Kf2 {[%clk 0:02:32]}  f5 {[%clk 0:02:04]} 13. cxd5 {[%clk 0:02:27]}  exd5 {[%clk 0:02:05]} 14. a3 {[%clk 0:02:17]}  Bd6 {[%clk 0:02:03]} 15. b4 {[%clk 0:02:17]}  a6 {[%clk 0:02:02]} 16. Qb3 {[%clk 0:02:14]}  b5 {[%clk 0:01:54]} 17. e4 {[%clk 0:02:10]}  fxe4 {[%clk 0:01:52]} 18. fxe4 {[%clk 0:02:10]}  Qf6+ {[%clk 0:01:41]} 19. Kg1 {[%clk 0:02:09]}  Rf8 {[%clk 0:01:06]} 20. e5 {[%clk 0:02:00]}  Qf2+ {[%clk 0:01:05]} 21. Kh2 {[%clk 0:02:00]}  Nf6 {[%clk 0:00:59]} 22. exf6 {[%clk 0:01:18]}  h4 {[%clk 0:00:58]} 23. Ne4 {[%clk 0:00:29]}  hxg3+ {[%clk 0:00:53]} 24. N2xg3 {[%clk 0:00:30]}  Rh8# {[%clk 0:00:52]} 0-1


[Site "https://www.chess.com"]

[Event "Titled Tuesday Blitz December 20 Early 2022"]
[White "Aza, Saulo"]
[Black "manitodeplomo"]
[WhiteFideId "4410394"]
[WhiteElo "1667"]
[BlackElo "2639"]
[Result "1/2-1/2"]
[Round "11"]
[TimeControl "180+2"]
[Date "2022.12.20"]
[WhiteClock "0:00:48"]
[BlackClock "0:00:19"]

1. d4 {[%clk 0:03:00]}  Nf6 {[%clk 0:02:38]} 2. c4 {[%clk 0:03:00]}  e6 {[%clk 0:02:38]} 3. Nc3 {[%clk 0:03:00]}  Bb4 {[%clk 0:02:37]} 4. a3 {[%clk 0:03:00]}  Bxc3+ {[%clk 0:02:37]} 5. bxc3 {[%clk 0:03:01]}  O-O {[%clk 0:02:34]} 6. e3 {[%clk 0:03:01]}  Ne4 {[%clk 0:02:20]} 7. Bd3 {[%clk 0:03:00]}  f5 {[%clk 0:02:19]} 8. Ne2 {[%clk 0:02:57]}  d6 {[%clk 0:02:17]} 9. O-O {[%clk 0:02:56]}  e5 {[%clk 0:02:15]} 10. f3 {[%clk 0:02:53]}  Nf6 {[%clk 0:02:15]} 11. Qc2 {[%clk 0:02:40]}  e4 {[%clk 0:02:11]} 12. fxe4 {[%clk 0:02:39]}  fxe4 {[%clk 0:02:11]} 13. Bxe4 {[%clk 0:02:39]}  Nxe4 {[%clk 0:02:12]} 14. Rxf8+ {[%clk 0:02:34]}  Qxf8 {[%clk 0:02:13]} 15. Qxe4 {[%clk 0:02:33]}  Nc6 {[%clk 0:02:08]} 16. Bd2 {[%clk 0:02:31]}  Bf5 {[%clk 0:02:00]} 17. Qd5+ {[%clk 0:02:28]}  Qf7 {[%clk 0:01:59]} 18. Rf1 {[%clk 0:02:21]}  Qxd5 {[%clk 0:01:52]} 19. cxd5 {[%clk 0:02:20]}  Ne7 {[%clk 0:01:53]} 20. Ng3 {[%clk 0:01:55]}  Bd3 {[%clk 0:01:52]} 21. Re1 {[%clk 0:01:55]}  Nxd5 {[%clk 0:01:50]} 22. e4 {[%clk 0:01:55]}  Nb6 {[%clk 0:01:48]} 23. e5 {[%clk 0:01:55]}  Nc4 {[%clk 0:01:46]} 24. Bc1 {[%clk 0:01:54]}  Re8 {[%clk 0:01:42]} 25. e6 {[%clk 0:01:51]}  Nb6 {[%clk 0:01:23]} 26. Nh5 {[%clk 0:01:28]}  Bc4 {[%clk 0:01:09]} 27. Nf4 {[%clk 0:01:26]}  Nd5 {[%clk 0:00:53]} 28. Nxd5 {[%clk 0:01:18]}  Bxd5 {[%clk 0:00:52]} 29. e7 {[%clk 0:01:18]}  Kf7 {[%clk 0:00:52]} 30. h4 {[%clk 0:01:15]}  Rxe7 {[%clk 0:00:49]} 31. Rxe7+ {[%clk 0:01:15]}  Kxe7 {[%clk 0:00:49]} 32. Kf2 {[%clk 0:01:15]}  Ke6 {[%clk 0:00:49]} 33. g4 {[%clk 0:01:12]}  g6 {[%clk 0:00:46]} 34. Ke3 {[%clk 0:01:09]}  h5 {[%clk 0:00:46]} 35. gxh5 {[%clk 0:01:07]}  gxh5 {[%clk 0:00:47]} 36. Kf4 {[%clk 0:01:06]}  b6 {[%clk 0:00:46]} 37. Ke3 {[%clk 0:01:03]}  Kf5 {[%clk 0:00:43]} 38. Kd3 {[%clk 0:01:02]}  c5 {[%clk 0:00:31]} 39. dxc5 {[%clk 0:00:54]}  bxc5 {[%clk 0:00:26]} 40. c4 {[%clk 0:00:53]}  Bc6 {[%clk 0:00:23]} 41. Bg5 {[%clk 0:00:52]}  Ke6 {[%clk 0:00:23]} 42. Kc3 {[%clk 0:00:51]}  Ba4 {[%clk 0:00:22]} 43. Bd8 {[%clk 0:00:49]}  a6 {[%clk 0:00:21]} 44. Bg5 {[%clk 0:00:49]}  Kd7 {[%clk 0:00:19]} 45. Bf6 {[%clk 0:00:48]}  Ke6 {[%clk 0:00:19]} 46. Bg5 {[%clk 0:00:48]}  Kd7 {[%clk 0:00:19]} 47. Bf6 {[%clk 0:00:48]}  Ke6 {[%clk 0:00:19]} 48. Bg5 {[%clk 0:00:48]} 1/2-1/2


[Site "https://www.chess.com"]

[Event "Titled Tuesday Blitz December 20 Early 2022"]
[White "Ball, John D L"]
[Black "Goryachkina, Aleksandra"]
[WhiteFideId "402150"]
[BlackFideId "4147103"]
[WhiteElo "2230"]
[BlackElo "2571"]
[Result "1-0"]
[Round "11"]
[TimeControl "180+2"]
[Date "2022.12.20"]
[WhiteClock "0:00:04"]
[BlackClock "0:00:05"]

1. e4 {[%clk 0:02:58]}  c5 {[%clk 0:02:59]} 2. Nf3 {[%clk 0:02:59]}  e6 {[%clk 0:03:00]} 3. Nc3 {[%clk 0:02:59]}  Nc6 {[%clk 0:02:55]} 4. Bb5 {[%clk 0:02:57]}  Nd4 {[%clk 0:02:53]} 5. Bd3 {[%clk 0:02:57]}  d6 {[%clk 0:02:45]} 6. O-O {[%clk 0:02:57]}  Nf6 {[%clk 0:02:43]} 7. Nxd4 {[%clk 0:02:53]}  cxd4 {[%clk 0:02:43]} 8. Ne2 {[%clk 0:02:46]}  e5 {[%clk 0:02:43]} 9. c3 {[%clk 0:02:46]}  dxc3 {[%clk 0:02:41]} 10. dxc3 {[%clk 0:02:47]}  Be7 {[%clk 0:02:39]} 11. Ng3 {[%clk 0:02:36]}  O-O {[%clk 0:02:39]} 12. h3 {[%clk 0:02:34]}  Be6 {[%clk 0:02:38]} 13. Qf3 {[%clk 0:02:31]}  d5 {[%clk 0:02:16]} 14. exd5 {[%clk 0:02:32]}  Qxd5 {[%clk 0:02:06]} 15. Nf5 {[%clk 0:02:07]}  Bc5 {[%clk 0:01:51]} 16. Qxd5 {[%clk 0:01:20]}  Nxd5 {[%clk 0:01:52]} 17. Re1 {[%clk 0:01:16]}  f6 {[%clk 0:01:35]} 18. Be4 {[%clk 0:01:15]}  Rad8 {[%clk 0:01:31]} 19. a4 {[%clk 0:01:07]}  Kf7 {[%clk 0:01:24]} 20. Ne3 {[%clk 0:01:00]}  a6 {[%clk 0:01:16]} 21. Nxd5 {[%clk 0:00:57]}  Bxd5 {[%clk 0:01:16]} 22. Bc2 {[%clk 0:00:57]}  Be6 {[%clk 0:01:05]} 23. Be4 {[%clk 0:00:56]}  Rd7 {[%clk 0:01:04]} 24. Be3 {[%clk 0:00:53]}  Bxe3 {[%clk 0:01:04]} 25. Rxe3 {[%clk 0:00:54]}  Rfd8 {[%clk 0:01:04]} 26. Bf3 {[%clk 0:00:47]}  g6 {[%clk 0:00:59]} 27. a5 {[%clk 0:00:47]}  Bd5 {[%clk 0:00:58]} 28. Ra4 {[%clk 0:00:43]}  Bxf3 {[%clk 0:00:55]} 29. Rxf3 {[%clk 0:00:44]}  Rd2 {[%clk 0:00:54]} 30. Rb4 {[%clk 0:00:44]}  R8d7 {[%clk 0:00:53]} 31. Rb6 {[%clk 0:00:44]}  R2d6 {[%clk 0:00:53]} 32. Rb4 {[%clk 0:00:41]}  Rc6 {[%clk 0:00:53]} 33. g4 {[%clk 0:00:39]}  Ke7 {[%clk 0:00:52]} 34. Kg2 {[%clk 0:00:38]}  Rc5 {[%clk 0:00:42]} 35. Rb6 {[%clk 0:00:37]}  Rc6 {[%clk 0:00:42]} 36. Rb4 {[%clk 0:00:33]}  Rc5 {[%clk 0:00:42]} 37. Rb6 {[%clk 0:00:33]}  Rc6 {[%clk 0:00:43]} 38. Rxc6 {[%clk 0:00:17]}  bxc6 {[%clk 0:00:44]} 39. b4 {[%clk 0:00:18]}  Ke6 {[%clk 0:00:44]} 40. Re3 {[%clk 0:00:17]}  f5 {[%clk 0:00:43]} 41. Kf3 {[%clk 0:00:14]}  h6 {[%clk 0:00:36]} 42. Ke2 {[%clk 0:00:13]}  e4 {[%clk 0:00:34]} 43. gxf5+ {[%clk 0:00:11]}  gxf5 {[%clk 0:00:33]} 44. Rg3 {[%clk 0:00:12]}  Kf6 {[%clk 0:00:20]} 45. Rg8 {[%clk 0:00:10]}  Rd3 {[%clk 0:00:20]} 46. Ra8 {[%clk 0:00:11]}  Rxc3 {[%clk 0:00:18]} 47. Rxa6 {[%clk 0:00:12]}  Ke5 {[%clk 0:00:18]} 48. Rb6 {[%clk 0:00:11]}  f4 {[%clk 0:00:18]} 49. a6 {[%clk 0:00:10]}  f3+ {[%clk 0:00:14]} 50. Kd2 {[%clk 0:00:08]}  Rd3+ {[%clk 0:00:12]} 51. Kc2 {[%clk 0:00:08]}  e3 {[%clk 0:00:10]} 52. a7 {[%clk 0:00:04]}  Rd8 {[%clk 0:00:08]} 53. Rb8 {[%clk 0:00:04]}  Rd2+ {[%clk 0:00:07]} 54. Kc3 {[%clk 0:00:04]}  Ra2 {[%clk 0:00:04]} 55. a8=Q {[%clk 0:00:03]}  Rxa8 {[%clk 0:00:04]} 56. Rxa8 {[%clk 0:00:04]}  exf2 {[%clk 0:00:05]} 57. Ra1 {[%clk 0:00:04]}  Kf4 {[%clk 0:00:05]} 58. Kd3 {[%clk 0:00:05]}  Kg3 {[%clk 0:00:05]} 59. Ke3 {[%clk 0:00:04]} 1-0


[Site "https://www.chess.com"]

[Event "Titled Tuesday Blitz December 20 Early 2022"]
[White "Beca, Rodrigo Martins"]
[Black "DefiantChair"]
[WhiteFideId "1954490"]
[WhiteElo "2976"]
[BlackElo "2631"]
[Result "1-0"]
[Round "11"]
[TimeControl "180+2"]
[Date "2022.12.20"]
[WhiteClock "0:01:45"]
[BlackClock "0:01:31"]

1. c4 {[%clk 0:03:00]}  Nf6 {[%clk 0:03:00]} 2. e3 {[%clk 0:02:59]}  e6 {[%clk 0:03:00]} 3. Nf3 {[%clk 0:02:58]}  d5 {[%clk 0:03:00]} 4. b3 {[%clk 0:02:58]}  b6 {[%clk 0:03:00]} 5. Bb2 {[%clk 0:02:58]}  Be7 {[%clk 0:02:59]} 6. g4 {[%clk 0:02:56]}  h6 {[%clk 0:02:46]} 7. Rg1 {[%clk 0:02:55]}  Bb7 {[%clk 0:02:45]} 8. h4 {[%clk 0:02:54]}  Nbd7 {[%clk 0:02:44]} 9. d3 {[%clk 0:02:49]}  c5 {[%clk 0:02:41]} 10. g5 {[%clk 0:02:48]}  hxg5 {[%clk 0:02:41]} 11. hxg5 {[%clk 0:02:48]}  Nh5 {[%clk 0:02:38]} 12. Nbd2 {[%clk 0:02:49]}  d4 {[%clk 0:02:27]} 13. exd4 {[%clk 0:02:32]}  Nf4 {[%clk 0:02:27]} 14. Rg4 {[%clk 0:02:28]}  Qc7 {[%clk 0:02:23]} 15. Qc2 {[%clk 0:02:26]}  O-O-O {[%clk 0:02:16]} 16. O-O-O {[%clk 0:02:26]}  cxd4 {[%clk 0:02:14]} 17. Nxd4 {[%clk 0:02:09]}  Nc5 {[%clk 0:02:00]} 18. b4 {[%clk 0:01:58]}  Ncxd3+ {[%clk 0:01:46]} 19. Bxd3 {[%clk 0:01:57]}  Nxd3+ {[%clk 0:01:47]} 20. Qxd3 {[%clk 0:01:57]}  e5 {[%clk 0:01:47]} 21. Qf5+ {[%clk 0:01:56]}  Kb8 {[%clk 0:01:45]} 22. Nb5 {[%clk 0:01:56]}  Bc8 {[%clk 0:01:35]} 23. Bxe5 {[%clk 0:01:48]}  Bxf5 {[%clk 0:01:32]} 24. Bxc7+ {[%clk 0:01:48]}  Kb7 {[%clk 0:01:32]} 25. Bxd8 {[%clk 0:01:48]}  Rxd8 {[%clk 0:01:33]} 26. Rd4 {[%clk 0:01:46]}  Rc8 {[%clk 0:01:31]} 27. Nd6+ {[%clk 0:01:45]} 1-0


[Site "https://www.chess.com"]

[Event "Titled Tuesday Blitz December 20 Early 2022"]
[White "Brunstein, Sandrine"]
[Black "AttractiveChess"]
[WhiteFideId "625574"]
[WhiteElo "1990"]
[BlackElo "2784"]
[Result "1/2-1/2"]
[Round "11"]
[TimeControl "180+2"]
[Date "2022.12.20"]
[WhiteClock "0:00:05"]
[BlackClock "0:00:12"]

1. c4 {[%clk 0:03:00]}  e6 {[%clk 0:02:55]} 2. g3 {[%clk 0:03:01]}  d5 {[%clk 0:02:55]} 3. Bg2 {[%clk 0:03:02]}  Nf6 {[%clk 0:02:56]} 4. Nf3 {[%clk 0:03:02]}  dxc4 {[%clk 0:02:56]} 5. O-O {[%clk 0:03:03]}  c6 {[%clk 0:02:56]} 6. a4 {[%clk 0:02:50]}  Na6 {[%clk 0:02:56]} 7. Na3 {[%clk 0:02:40]}  Bxa3 {[%clk 0:02:55]} 8. Rxa3 {[%clk 0:02:41]}  O-O {[%clk 0:02:54]} 9. Qc2 {[%clk 0:02:40]}  b5 {[%clk 0:02:50]} 10. Ne5 {[%clk 0:02:33]}  Nb4 {[%clk 0:02:49]} 11. Qb1 {[%clk 0:02:22]}  Nfd5 {[%clk 0:02:47]} 12. b3 {[%clk 0:02:13]}  cxb3 {[%clk 0:02:47]} 13. Qxb3 {[%clk 0:02:04]}  a5 {[%clk 0:02:43]} 14. Bb2 {[%clk 0:01:50]}  Ba6 {[%clk 0:02:38]} 15. d3 {[%clk 0:01:50]}  Qd6 {[%clk 0:02:34]} 16. Rc1 {[%clk 0:01:48]}  Rfc8 {[%clk 0:02:34]} 17. axb5 {[%clk 0:01:37]}  Bxb5 {[%clk 0:02:34]} 18. Nc4 {[%clk 0:01:35]}  Qd8 {[%clk 0:02:28]} 19. h4 {[%clk 0:01:17]}  a4 {[%clk 0:02:18]} 20. Qd1 {[%clk 0:01:17]}  Nb6 {[%clk 0:02:18]} 21. Ne5 {[%clk 0:01:15]}  f6 {[%clk 0:02:15]} 22. Nf3 {[%clk 0:01:11]}  e5 {[%clk 0:02:15]} 23. Nd2 {[%clk 0:01:11]}  Qe7 {[%clk 0:02:03]} 24. Ne4 {[%clk 0:01:10]}  Rd8 {[%clk 0:01:54]} 25. Qe1 {[%clk 0:01:08]}  N4d5 {[%clk 0:01:48]} 26. Nc5 {[%clk 0:01:04]}  Nd7 {[%clk 0:01:44]} 27. Ne4 {[%clk 0:01:00]}  Rdb8 {[%clk 0:01:39]} 28. Qd2 {[%clk 0:00:46]}  Ra6 {[%clk 0:01:18]} 29. d4 {[%clk 0:00:24]}  N5b6 {[%clk 0:01:18]} 30. dxe5 {[%clk 0:00:21]}  Nxe5 {[%clk 0:01:19]} 31. Bxe5 {[%clk 0:00:14]}  Qxe5 {[%clk 0:01:17]} 32. Nc5 {[%clk 0:00:04]}  Ra7 {[%clk 0:01:09]} 33. Nd3 {[%clk 0:00:04]}  Qd6 {[%clk 0:01:07]} 34. Rac3 {[%clk 0:00:04]}  a3 {[%clk 0:00:40]} 35. Qa2+ {[%clk 0:00:04]}  Nd5 {[%clk 0:00:37]} 36. Nf4 {[%clk 0:00:05]}  Kh8 {[%clk 0:00:36]} 37. Nxd5 {[%clk 0:00:04]}  cxd5 {[%clk 0:00:35]} 38. Rc8+ {[%clk 0:00:05]}  Be8 {[%clk 0:00:35]} 39. Qxd5 {[%clk 0:00:05]}  Qxd5 {[%clk 0:00:27]} 40. Bxd5 {[%clk 0:00:04]}  Rxc8 {[%clk 0:00:21]} 41. Rxc8 {[%clk 0:00:05]}  Re7 {[%clk 0:00:21]} 42. e4 {[%clk 0:00:05]}  g6 {[%clk 0:00:21]} 43. Ra8 {[%clk 0:00:06]}  Kg7 {[%clk 0:00:20]} 44. Rxa3 {[%clk 0:00:06]}  Bf7 {[%clk 0:00:18]} 45. Bxf7 {[%clk 0:00:06]}  Kxf7 {[%clk 0:00:18]} 46. Ra4 {[%clk 0:00:07]}  h5 {[%clk 0:00:18]} 47. Kg2 {[%clk 0:00:07]}  Rb7 {[%clk 0:00:18]} 48. Kf3 {[%clk 0:00:08]}  Kg7 {[%clk 0:00:16]} 49. Kf4 {[%clk 0:00:08]}  Re7 {[%clk 0:00:16]} 50. Ra6 {[%clk 0:00:08]}  Rb7 {[%clk 0:00:16]} 51. Rd6 {[%clk 0:00:08]}  Rb2 {[%clk 0:00:14]} 52. Rd7+ {[%clk 0:00:07]}  Kf8 {[%clk 0:00:14]} 53. f3 {[%clk 0:00:08]}  Rb3 {[%clk 0:00:13]} 54. Ra7 {[%clk 0:00:08]}  Rb4 {[%clk 0:00:13]} 55. Rc7 {[%clk 0:00:08]}  Ra4 {[%clk 0:00:13]} 56. Rd7 {[%clk 0:00:08]}  Rb4 {[%clk 0:00:13]} 57. g4 {[%clk 0:00:07]}  hxg4 {[%clk 0:00:13]} 58. fxg4 {[%clk 0:00:08]}  Rb1 {[%clk 0:00:13]} 59. Rd3 {[%clk 0:00:08]}  Rh1 {[%clk 0:00:12]} 60. Kg3 {[%clk 0:00:06]}  Rg1+ {[%clk 0:00:12]} 61. Kf3 {[%clk 0:00:05]}  Rh1 {[%clk 0:00:12]} 62. Kg3 {[%clk 0:00:05]}  Rg1+ {[%clk 0:00:12]} 1/2-1/2


[Site "https://www.chess.com"]